bitfinex/quotes_BTCUSD_20220306
["timestamp","ask_amount","ask_price","bid_price","bid_amount"]
[1646551321975,0.00023493,39392.0,39389.0,0.25]
[1646551322619,0.00023493,39392.0,39390.0,0.30575136]
[1646551322823,0.00023493,39392.0,39391.0,0.18459006]
[1646551323025,0.00863899,39394.0,39391.0,0.49034142]
[1646551323220,0.00022625,39392.0,39391.0,0.49034142]
[1646551323421,0.00022625,39392.0,39391.0,0.54124142]
[1646551324028,0.36176261,39396.0,39392.0,0.65]
[1646551324326,0.00042473,39399.0,39395.0,0.8]
[1646551324522,0.00042473,39399.0,39398.0,0.19036685]
[1646551324724,0.00042473,39399.0,39398.0,0.58847187]
[1646551324921,0.00042473,39399.0,39398.0,0.63937187]
[1646551325322,0.04,39406.0,39398.0,1.67183882]
[1646551325526,0.035,39406.0,39398.0,1.70618882]
[1646551325822,0.035,39406.0,39402.0,0.7707]
[1646551326024,0.035,39406.0,39404.0,0.89758935]
[1646551326374,0.1161,39419.0,39404.0,0.89758935]
[1646551326375,0.1161,39419.0,39406.0,0.126883]
[1646551326580,0.1161,39419.0,39407.0,0.3575488]
[1646551326772,0.00094016,39413.0,39407.0,0.3575488]
[1646551326972,0.00094016,39413.0,39410.0,0.21735997]
[1646551327173,0.00094016,39413.0,39411.0,0.3575488]
[1646551327374,0.00094016,39413.0,39412.0,0.3066488]
[1646551327575,0.00094016,39413.0,39412.0,0.3575488]
[1646551327772,0.00863899,39418.0,39412.0,0.3575488]
[1646551327972,0.00023505,39414.0,39412.0,0.3575488]
[1646551328190,0.00023505,39414.0,39413.0,0.3066488]
[1646551328576,0.00023505,39414.0,39413.0,0.3575488]
[1646551328976,0.00863899,39420.0,39413.0,0.3575488]
[1646551329177,0.00023505,39415.0,39413.0,0.3575488]
[1646551329376,0.00023505,39415.0,39413.0,0.0509]
[1646551329980,0.00863899,39414.0,39413.0,0.0509]
[1646551332135,0.00363899,39414.0,39413.0,0.0509]
[1646551333342,0.00363899,39414.0,39410.0,0.003]
[1646551333544,0.00363899,39412.0,39408.0,0.3066488]
[1646551333739,0.00363899,39412.0,39407.0,0.0509]
[1646551334372,0.00363899,39412.0,39407.0,0.3575488]
[1646551335272,0.00022008,39411.0,39407.0,0.3575488]
[1646551335472,0.00022008,39411.0,39407.0,0.0509]
[1646551335876,0.00363899,39410.0,39407.0,0.0509]
[1646551336273,0.00172132,39414.0,39407.0,0.0509]
[1646551336475,0.00022008,39411.0,39407.0,0.0509]
[1646551337275,0.00022008,39411.0,39407.0,0.3575488]
[1646551337474,0.00363899,39412.0,39407.0,0.3575488]
[1646551337719,0.00010281,39411.0,39407.0,0.3575488]
[1646551337918,0.00010281,39411.0,39406.0,0.13823226]
[1646551338120,0.0035418,39412.0,39403.0,0.0509]
[1646551338320,0.00172132,39414.0,39406.0,0.004]
[1646551338522,0.0035418,39412.0,39406.0,0.004]
[1646551339521,0.0035418,39412.0,39404.0,0.4107078]
[1646551340023,0.00171367,39410.0,39407.0,0.063446]
[1646551340222,0.00525547,39410.0,39404.0,0.4107078]
[1646551341869,0.00171367,39410.0,39404.0,0.4107078]
[1646551342469,0.00023619,39409.0,39405.0,0.20317926]
[1646551342870,0.00023619,39409.0,39406.0,0.30454552]
[1646551343369,0.00171367,39410.0,39406.0,0.30454552]
[1646551343573,0.00023619,39409.0,39406.0,0.30454552]
[1646551344373,0.00023619,39409.0,39405.0,0.20717926]
[1646551344573,0.00171367,39410.0,39405.0,0.20717926]
[1646551344772,0.00525547,39410.0,39405.0,0.20717926]
[1646551344972,0.00023619,39409.0,39405.0,0.20717926]
[1646551345430,0.00023619,39409.0,39405.0,0.20317926]
[1646551345828,0.00171367,39410.0,39405.0,0.20317926]
[1646551346031,0.00023619,39409.0,39405.0,0.20317926]
[1646551346930,0.00171367,39410.0,39405.0,0.20317926]
[1646551347230,0.00022732,39409.0,39404.0,0.4157078]
[1646551347429,0.00022732,39409.0,39404.0,0.4107078]
[1646551348031,0.00022732,39409.0,39404.0,0.70545546]
[1646551348230,0.00171367,39410.0,39405.0,0.18891706]
[1646551348433,0.00525547,39410.0,39405.0,0.18891706]
[1646551349676,0.00525547,39410.0,39404.0,0.4233878]
[1646551350378,0.0035418,39410.0,39404.0,0.4233878]
[1646551350778,0.00022861,39409.0,39404.0,0.4233878]
[1646551351178,0.00022861,39409.0,39404.0,0.42328219]
[1646551351878,0.0035418,39410.0,39404.0,0.41060219]
[1646551352078,0.00022861,39409.0,39404.0,0.41060219]
[1646551352921,0.0035418,39410.0,39404.0,0.41060219]
[1646551353327,0.00022861,39409.0,39404.0,0.41060219]
[1646551354122,0.0035418,39410.0,39404.0,0.41060219]
[1646551354521,0.00022003,39409.0,39404.0,0.41060219]
[1646551354724,0.0035418,39405.0,39404.0,0.25]
[1646551355623,0.17525805,39405.0,39404.0,0.25]
[1646551356476,0.47980357,39405.0,39404.0,0.25]
[1646551359282,0.47980357,39405.0,39404.0,0.1]
[1646551359283,1.01151357,39405.0,39404.0,0.1]
[1646551359481,0.40703,39402.0,39383.0,0.1]
[1646551359680,0.02532,39400.0,39384.0,1.0]
[1646551359881,0.15618653,39394.0,39388.0,0.15209093]
[1646551360123,0.15972833,39394.0,39385.0,0.05]
[1646551360325,0.15972833,39394.0,39384.0,0.5]
[1646551360527,0.15972833,39394.0,39383.0,0.005]
[1646551360528,0.0035418,39387.0,39383.0,0.005]
[1646551361126,0.0035418,39390.0,39385.0,0.15989651]
[1646551362330,0.0035418,39387.0,39382.0,0.004]
[1646551362530,0.30249278,39393.0,39382.0,0.004]
[1646551362731,0.0035418,39387.0,39382.0,0.004]
[1646551363233,0.0035418,39387.0,39384.0,0.2157099]
[1646551365083,0.0035418,39387.0,39383.0,0.20586663]
[1646551366386,0.0035418,39387.0,39385.0,0.1647323]
[1646551366985,0.0035418,39387.0,39383.0,0.20586663]
[1646551368035,0.0035418,39387.0,39385.0,0.15937207]
[1646551368436,0.0035418,39387.0,39383.0,0.20586663]
[1646551369836,0.0035418,39387.0,39383.0,0.45586663]
[1646551375720,0.0035418,39387.0,39383.0,0.25]
[1646551375919,0.49678095,39391.0,39383.0,0.25]
[1646551375920,0.0035418,39384.0,39383.0,0.25]
[1646551376719,0.0035418,39384.0,39383.0,0.4041476]
[1646551377921,0.0035418,39384.0,39383.0,0.25]
[1646551378888,0.0035418,39384.0,39383.0,0.46240066]
[1646551379287,0.0035418,39384.0,39383.0,0.25]
[1646551380288,0.0035418,39384.0,39383.0,0.42781726]
[1646551380892,0.0035418,39384.0,39383.0,0.25]
[1646551381492,0.00344051,39384.0,39383.0,0.25]
[1646551388073,0.00344051,39386.0,39383.0,0.25]
[1646551389772,0.2037693,39390.0,39383.0,0.25]
[1646551390222,0.00344051,39385.0,39383.0,0.25]
[1646551401779,0.00344051,39384.0,39383.0,0.25]
[1646551402181,0.1844648,39390.0,39383.0,0.25]
[1646551402380,0.00344051,39387.0,39383.0,0.25]
[1646551402582,0.1844648,39390.0,39383.0,0.25]
[1646551402780,0.00344051,39386.0,39383.0,0.25]
[1646551403181,0.1844648,39390.0,39383.0,0.25]
[1646551403381,0.00344051,39384.0,39383.0,0.25]
[1646551403980,0.00333004,39384.0,39383.0,0.25]
[1646551405528,0.1844648,39390.0,39383.0,0.25]
[1646551405727,0.00333004,39386.0,39383.0,0.25]
[1646551406326,0.50938165,39392.0,39383.0,0.25]
[1646551406627,0.00333004,39388.0,39383.0,0.25]
[1646551408429,0.00333004,39388.0,39384.0,0.18650078]
[1646551408869,0.30249278,39391.0,39384.0,0.18650078]
[1646551409274,0.00333004,39387.0,39384.0,0.18650078]
[1646551409472,0.00333004,39387.0,39383.0,0.25]
[1646551409672,0.00333004,39386.0,39383.0,0.25]
[1646551410973,0.30249278,39391.0,39383.0,0.25]
[1646551411173,0.00333004,39386.0,39383.0,0.25]
[1646551413230,0.30249278,39389.0,39383.0,0.25]
[1646551413435,0.17532289,39390.0,39383.0,0.25]
[1646551413632,0.30249278,39389.0,39383.0,0.25]
[1646551414131,0.00333004,39384.0,39383.0,0.25]
[1646551414331,0.30249278,39391.0,39383.0,0.25]
[1646551414532,0.00333004,39387.0,39383.0,0.25]
[1646551414934,0.00333004,39384.0,39383.0,0.25]
[1646551415733,0.30249278,39391.0,39383.0,0.25]
[1646551415937,0.00333004,39386.0,39383.0,0.25]
[1646551416133,0.00333004,39388.0,39383.0,0.25]
[1646551416768,0.75118542,39391.0,39383.0,0.25]
[1646551416968,0.30533922,39381.0,39380.0,0.003]
[1646551418769,0.30533922,39381.0,39377.0,0.1579419]
[1646551419769,0.30533922,39381.0,39374.0,0.11398943]
[1646551419970,0.30533922,39381.0,39373.0,0.5011]
[1646551419971,0.30347784,39380.0,39373.0,0.5011]
[1646551420231,0.30347784,39380.0,39373.0,0.0011]
[1646551420232,0.00333004,39378.0,39373.0,0.0011]
[1646551420728,0.00333004,39378.0,39373.0,0.2511]
[1646551421526,0.30680788,39378.0,39373.0,0.2511]
[1646551423132,0.00333004,39378.0,39373.0,0.2511]
[1646551423976,0.00333004,39378.0,39374.0,0.16476476]
[1646551424178,0.30533922,39381.0,39375.0,0.07622]
[1646551425375,0.30533922,39381.0,39375.0,0.13970917]
[1646551425775,0.30533922,39381.0,39375.0,0.23970917]
[1646551428028,0.30533922,39381.0,39375.0,0.17622]
[1646551428630,0.30533922,39381.0,39375.0,0.1509]
[1646551429035,0.30533922,39381.0,39376.0,0.12697897]
[1646551429229,0.30533922,39381.0,39377.0,0.25499439]
[1646551431776,0.30533922,39381.0,39377.0,0.50499439]
[1646551434375,0.1176,39391.0,39381.0,1.0]
[1646551434580,0.84365552,39400.0,39382.0,0.07622]
[1646551434581,0.01268,39395.0,39382.0,0.07622]
[1646551434776,0.20013004,39396.0,39382.0,0.2692667]
[1646551434978,0.30347784,39395.0,39382.0,1.0399667]
[1646551435224,0.30347784,39395.0,39382.0,0.84692]
[1646551435430,0.30347784,39395.0,39392.0,0.18232332]
[1646551435629,0.00333004,39396.0,39392.0,0.18232332]
[1646551436426,0.00333004,39396.0,39393.0,0.0509]
[1646551437526,0.00333004,39396.0,39394.0,0.063465]
[1646551438328,0.00333004,39396.0,39395.0,0.0509]
[1646551439784,0.20817159,39400.0,39395.0,0.0509]
[1646551440186,0.00333004,39399.0,39395.0,0.0509]
[1646551442285,0.00333004,39399.0,39395.0,0.3009]
[1646551442724,0.00333004,39398.0,39395.0,0.3009]
[1646551444125,0.30501002,39399.0,39395.0,0.3009]
[1646551444324,0.30501002,39399.0,39395.0,0.25]
[1646551444629,0.00333004,39396.0,39395.0,0.25]
[1646551446979,0.3042355,39389.0,39385.0,0.1819]
[1646551447183,0.3042355,39389.0,39387.0,0.18637616]
[1646551451036,0.3042355,39389.0,39388.0,0.16261624]
[1646551451436,0.3042355,39389.0,39388.0,0.16260206]
[1646551459234,0.30591619,39389.0,39388.0,0.16260206]
[1646551460336,0.30591619,39389.0,39387.0,0.18637616]
[1646551462681,0.30591619,39389.0,39387.0,0.19637616]
[1646551463278,0.30591619,39389.0,39388.0,0.30598254]
[1646551463477,0.30591619,39389.0,39388.0,0.36945254]
[1646551464880,0.30548437,39389.0,39388.0,0.36945254]
[1646551465727,0.30548437,39389.0,39388.0,0.42035254]
[1646551468427,0.30548437,39389.0,39388.0,0.36945254]
[1646551470683,0.30548437,39389.0,39388.0,0.42035254]
[1646551471181,0.30541789,39389.0,39388.0,0.42035254]
[1646551471381,0.30541789,39389.0,39388.0,0.60974677]
[1646551471582,0.30541789,39389.0,39388.0,0.0509]
[1646551471784,0.30874793,39389.0,39388.0,0.18939423]
[1646551471981,0.30874793,39389.0,39387.0,0.015]
[1646551471982,0.38799793,39389.0,39387.0,0.015]
[1646551472182,0.00333004,39388.0,39387.0,0.015]
[1646551472629,0.00333004,39388.0,39387.0,0.01]
[1646551472829,0.38907777,39388.0,39387.0,0.01]
[1646551475130,0.19470645,39388.0,39387.0,0.01]
[1646551476135,0.36208314,39388.0,39387.0,0.01]
[1646551476675,0.19470645,39388.0,39387.0,0.01]
[1646551479679,0.40877395,39388.0,39387.0,0.01]
[1646551479877,0.19470645,39388.0,39387.0,0.01]
[1646551481328,0.19137641,39388.0,39387.0,0.01]
[1646551481628,0.19470645,39388.0,39387.0,0.01]
[1646551482730,0.01999999,39386.0,39381.0,0.19861444]
[1646551483977,0.01999999,39386.0,39381.0,0.19561444]
[1646551488439,0.01999999,39386.0,39381.0,0.03740906]
[1646551492186,0.01999999,39386.0,39381.0,0.04740906]
[1646551493487,0.01999999,39386.0,39381.0,0.03740906]
[1646551494491,0.00333004,39384.0,39377.0,0.20158]
[1646551494689,0.01999999,39386.0,39377.0,0.1889]
[1646551494690,0.00333004,39382.0,39377.0,0.1889]
[1646551495130,0.00333004,39382.0,39375.0,0.005]
[1646551495530,0.19112867,39381.0,39375.0,0.005]
[1646551496134,0.19112867,39381.0,39372.0,0.06084555]
[1646551496731,0.00333004,39382.0,39376.0,0.16894671]
[1646551499281,0.01999999,39386.0,39376.0,0.16894671]
[1646551499881,0.01999999,39386.0,39383.0,0.17632318]
[1646551505456,0.00140949,39385.0,39383.0,0.17632318]
[1646551505656,0.00140949,39385.0,39382.0,0.003]
[1646551506060,0.00140949,39385.0,39376.0,0.01268]
[1646551506256,0.00140949,39385.0,39373.0,0.37258688]
[1646551506257,0.00140949,39385.0,39374.0,0.01268]
[1646551506686,0.00140949,39385.0,39379.0,0.20402882]
[1646551508185,0.00140949,39385.0,39379.0,0.19402882]
[1646551512639,0.15410344,39385.0,39379.0,0.19402882]
[1646551513437,0.15410344,39385.0,39375.0,0.05495918]
[1646551514389,0.15410344,39385.0,39379.0,0.21065202]
[1646551514789,0.00140949,39385.0,39379.0,0.21065202]
[1646551520937,0.00140949,39385.0,39376.0,0.01268]
[1646551521136,0.00140949,39385.0,39375.0,0.01268]
[1646551522188,0.17997028,39379.0,39375.0,0.01268]
[1646551523188,0.17997028,39379.0,39376.0,0.17576489]
[1646551525454,0.00105592,39384.0,39376.0,0.17576489]
[1646551526059,0.00105592,39384.0,39375.0,0.01268]
[1646551526859,0.00105592,39384.0,39378.0,0.0595583]
[1646551527160,0.00105592,39384.0,39383.0,0.17876962]
[1646551527363,0.35753923,39382.0,39379.0,0.30623968]
[1646551527662,0.35753923,39382.0,39378.0,0.1230503]
[1646551527860,0.35753923,39382.0,39378.0,0.063492]
[1646551528460,0.35753923,39382.0,39378.0,0.2222449]
[1646551528662,0.35753923,39382.0,39378.0,0.1587529]
[1646551530092,0.35753923,39382.0,39374.0,0.01268]
[1646551531093,0.51682168,39382.0,39377.0,0.20099969]
[1646551531291,0.35753923,39382.0,39377.0,0.20099969]
[1646551532853,0.35753923,39382.0,39374.0,0.01268]
[1646551534449,0.35753923,39382.0,39378.0,0.17162891]
[1646551534956,0.00105233,39381.0,39378.0,0.17162891]
[1646551536907,0.00105233,39381.0,39379.0,0.063491]
[1646551538208,0.00105233,39381.0,39380.0,0.06951887]
[1646551539311,0.35753923,39382.0,39380.0,0.06951887]
[1646551539509,0.35753923,39382.0,39380.0,0.12041887]
[1646551540935,0.35753923,39382.0,39380.0,0.0509]
[1646551548337,0.35753923,39382.0,39380.0,0.0459]
[1646551555436,0.35753923,39382.0,39381.0,0.30623968]
[1646551556036,0.35753923,39382.0,39381.0,0.3729222]
[1646551556836,0.35753923,39382.0,39381.0,0.06668252]
[1646551558038,0.35753923,39382.0,39381.0,0.3729222]
[1646551558441,0.35753923,39382.0,39381.0,0.06668252]
[1646551558738,0.35753923,39382.0,39381.0,0.3729222]
[1646551560508,0.35753923,39382.0,39381.0,0.54813195]
[1646551560712,0.01999999,39386.0,39382.0,0.93632541]
[1646551561017,0.01999999,39386.0,39383.0,0.41981968]
[1646551561308,0.01999999,39386.0,39385.0,0.11415435]
[1646551561509,0.01999999,39386.0,39385.0,0.85142957]
[1646551561710,0.1167,39401.0,39390.0,0.063466]
[1646551561909,0.1167,39401.0,39391.0,0.30623968]
[1646551562108,0.1167,39401.0,39391.0,0.35713968]
[1646551562745,0.1167,39401.0,39396.0,0.18332188]
[1646551562942,0.0008236,39403.0,39397.0,0.0509]
[1646551563142,0.4,39402.0,39396.0,0.08152188]
[1646551563343,0.21095022,39404.0,39397.0,0.0509]
[1646551563845,0.18187315,39403.0,39397.0,0.0509]
[1646551564444,0.21095022,39404.0,39397.0,0.0509]
[1646551564645,0.41732,39407.0,39398.0,0.30390406]
[1646551564646,0.392,39407.0,39398.0,0.30390406]
[1646551564845,0.1167,39408.0,39398.0,0.30390406]
[1646551564846,0.11752354,39408.0,39398.0,0.30390406]
[1646551565044,0.11752354,39408.0,39399.0,0.0509]
[1646551565644,0.30128751,39408.0,39399.0,0.0509]
[1646551565845,0.30046397,39408.0,39399.0,0.0509]
[1646551566791,0.48368731,39408.0,39400.0,0.30390406]
[1646551567090,0.48368731,39408.0,39401.0,0.0509]
[1646551567288,0.36698731,39408.0,39398.0,0.30390406]
[1646551567687,0.36698731,39408.0,39401.0,0.15098507]
[1646551567888,0.36698731,39408.0,39402.0,0.0509]
[1646551568488,0.18376397,39408.0,39402.0,0.0509]
[1646551569889,0.20211193,39406.0,39402.0,0.0509]
[1646551571040,0.20211193,39406.0,39397.0,0.01268]
[1646551571244,0.20211193,39406.0,39396.0,0.33075236]
[1646551572038,0.26848902,39406.0,39396.0,0.20605236]
[1646551572338,0.19789118,39399.0,39396.0,0.20305236]
[1646551574287,0.1168,39407.0,39396.0,0.20305236]
[1646551574491,0.00082355,39405.0,39396.0,0.20305236]
[1646551575187,0.00082355,39405.0,39397.0,0.1546778]
[1646551575589,0.1168,39407.0,39397.0,0.1546778]
[1646551575887,0.1168,39407.0,39397.0,0.45858186]
[1646551576087,0.1168,39407.0,39397.0,0.30390406]
[1646551576390,0.18224182,39406.0,39397.0,0.30390406]
[1646551576586,0.1168,39407.0,39397.0,0.30390406]
[1646551576986,0.1168,39407.0,39397.0,0.49539273]
[1646551577641,0.1168,39407.0,39402.0,0.18708475]
[1646551577846,0.1841,39411.0,39402.0,0.18708475]
[1646551578043,0.00020588,39409.0,39402.0,0.18708475]
[1646551578742,0.00020588,39409.0,39402.0,0.23798475]
[1646551578945,0.19101373,39410.0,39402.0,0.29137687]
[1646551579142,0.00020589,39409.0,39402.0,0.23798475]
[1646551580145,0.19101373,39410.0,39402.0,0.23798475]
[1646551580344,0.00020604,39409.0,39402.0,0.23798475]
[1646551580544,0.00020604,39409.0,39402.0,0.0509]
[1646551581385,0.18601373,39410.0,39402.0,0.0509]
[1646551581589,0.02532,39412.0,39396.0,0.1191]
[1646551581590,0.21714123,39403.0,39396.0,0.1191]
[1646551581790,0.21714123,39403.0,39396.0,0.0539]
[1646551582389,0.21714123,39403.0,39396.0,0.0509]
[1646551582589,0.21714123,39403.0,39397.0,0.20589606]
[1646551583189,0.21714123,39403.0,39395.0,0.005]
[1646551584391,0.21714123,39403.0,39397.0,0.20124515]
[1646551584593,0.21714123,39403.0,39395.0,0.05631006]
[1646551584795,0.21714123,39403.0,39396.0,0.30390406]
[1646551585139,0.21714123,39403.0,39396.0,0.30790406]
[1646551585542,0.15724229,39405.0,39397.0,0.19008145]
[1646551585741,0.00036841,39407.0,39398.0,0.30390406]
[1646551586142,0.185,39412.0,39398.0,0.30390406]
[1646551586545,9.211e-05,39409.0,39398.0,0.30390406]
[1646551586747,0.17187752,39405.0,39398.0,0.30390406]
[1646551586943,9.211e-05,39409.0,39398.0,0.30390406]
[1646551587346,0.1127,39411.0,39401.0,0.063454]
[1646551587544,0.1127,39411.0,39402.0,0.30390406]
[1646551587745,0.00022149,39409.0,39403.0,0.0509]
[1646551587945,0.00022149,39409.0,39406.0,0.19934251]
[1646551588548,0.16280059,39413.0,39406.0,0.19934251]
[1646551588747,0.00022965,39409.0,39406.0,0.19934251]
[1646551589892,0.16280059,39413.0,39406.0,0.19934251]
[1646551590091,0.00022965,39409.0,39406.0,0.19934251]
[1646551590991,0.16280059,39413.0,39406.0,0.19934251]
[1646551591193,0.00022965,39409.0,39406.0,0.19934251]
[1646551592194,0.1204,39417.0,39406.0,0.19934251]
[1646551592392,0.00021241,39409.0,39406.0,0.19934251]
[1646551592840,0.00021241,39409.0,39407.0,0.30390406]
[1646551593238,0.00021241,39409.0,39408.0,0.0509]
[1646551593438,0.2776837,39417.0,39408.0,0.0509]
[1646551593639,0.00021241,39410.0,39408.0,0.0509]
[1646551594338,0.00021241,39410.0,39408.0,0.21056341]
[1646551594542,0.3048831,39416.0,39408.0,0.0509]
[1646551594738,0.2776837,39417.0,39408.0,0.0509]
[1646551594939,0.00021241,39411.0,39408.0,0.0509]
[1646551595739,0.3048831,39416.0,39408.0,0.0509]
[1646551595942,0.00020541,39411.0,39408.0,0.0509]
[1646551596892,0.11092541,39417.0,39408.0,0.0509]
[1646551597394,0.00020541,39411.0,39408.0,0.0509]
[1646551598195,0.11092541,39417.0,39408.0,0.0509]
[1646551599597,0.10613152,39417.0,39408.0,0.0509]
[1646551600846,0.26111968,39417.0,39408.0,0.0509]
[1646551601249,0.10613152,39417.0,39408.0,0.0509]
[1646551602353,0.10613152,39417.0,39411.0,0.16498288]
[1646551602548,0.3954,39421.0,39412.0,0.30361506]
[1646551602848,0.2,39421.0,39412.0,0.35451506]
[1646551603347,0.2,39421.0,39412.0,0.42854191]
[1646551604192,0.21138114,39423.0,39412.0,0.42854191]
[1646551604193,0.2,39422.0,39412.0,0.42854191]
[1646551604393,0.00010607,39418.0,39413.0,0.15567028]
[1646551604592,0.00010607,39418.0,39414.0,0.0509]
[1646551604796,0.00010607,39418.0,39409.0,0.20641719]
[1646551604998,0.00010607,39418.0,39415.0,0.0509]
[1646551605395,0.2,39421.0,39415.0,0.0509]
[1646551605595,0.00010607,39418.0,39415.0,0.0509]
[1646551606594,0.2,39421.0,39415.0,0.0509]
[1646551606794,0.0002359,39418.0,39415.0,0.0509]
[1646551609042,0.2,39421.0,39415.0,0.0509]
[1646551609340,0.0002359,39418.0,39415.0,0.11433]
[1646551609537,0.0002359,39418.0,39415.0,0.16433]
[1646551609739,0.0002359,39418.0,39415.0,0.1009]
[1646551609938,0.0002359,39418.0,39417.0,0.00429128]
[1646551610138,0.2,39421.0,39417.0,0.00429128]
[1646551610539,0.0002359,39418.0,39417.0,0.00429128]
[1646551611391,0.2,39422.0,39417.0,0.00429128]
[1646551611590,0.00022852,39419.0,39417.0,0.00429128]
[1646551612490,0.2,39421.0,39417.0,0.00429128]
[1646551612891,0.00022851,39420.0,39417.0,0.05519128]
[1646551613694,0.2,39421.0,39417.0,0.05519128]
[1646551613889,0.2,39421.0,39418.0,0.30361506]
[1646551614091,0.2,39421.0,39419.0,0.0509]
[1646551614092,0.00010687,39420.0,39419.0,0.0509]
[1646551614291,0.00010687,39420.0,39419.0,0.35451506]
[1646551614990,0.2,39421.0,39420.0,0.20499211]
[1646551615243,0.20022098,39421.0,39420.0,0.55950717]
[1646551615448,0.20022098,39421.0,39420.0,0.60950717]
[1646551615648,0.01942328,39421.0,39420.0,1.52103714]
[1646551615847,0.01942328,39421.0,39420.0,1.77102158]
[1646551616046,0.20688887,39441.0,39423.0,0.02532]
[1646551616347,0.04,39442.0,39435.0,0.09155779]
[1646551616546,0.04,39442.0,39436.0,0.32790006]
[1646551616843,0.04,39442.0,39436.0,0.98918006]
[1646551617242,0.04,39442.0,39440.0,0.16578537]
[1646551617243,0.00290175,39442.0,39440.0,0.16578537]
[1646551617443,0.00290175,39442.0,39436.0,0.98918006]
[1646551617444,0.00290175,39442.0,39436.0,0.93828006]
[1646551617644,0.00290175,39442.0,39441.0,0.0509]
[1646551619701,0.00290175,39442.0,39441.0,0.35234098]
[1646551620305,0.00290175,39442.0,39441.0,0.0509]
[1646551622205,0.00290175,39442.0,39441.0,0.35234098]
[1646551622407,0.1199,39453.0,39442.0,0.8]
[1646551622408,0.00010589,39443.0,39442.0,0.8]
[1646551622647,0.00010589,39443.0,39442.0,0.64335822]
[1646551623047,0.00010589,39443.0,39442.0,0.71803822]
[1646551623248,0.00010589,39443.0,39442.0,0.92241027]
[1646551623452,0.1984,39458.0,39446.0,0.063379]
[1646551623647,0.00042348,39450.0,39448.0,0.06694254]
[1646551623849,0.00042348,39450.0,39447.0,0.0509]
[1646551624247,0.00042348,39450.0,39447.0,0.17764]
[1646551624449,0.00042348,39450.0,39448.0,0.21836143]
[1646551624648,0.1232,39460.0,39454.0,0.19819298]
[1646551624848,0.001,39461.0,39454.0,0.19819298]
[1646551624849,0.00042348,39456.0,39454.0,0.19819298]
[1646551625050,0.00042348,39456.0,39455.0,0.114266]
[1646551625851,0.001,39461.0,39455.0,0.114266]
[1646551626052,0.29962767,39464.0,39455.0,0.0509]
[1646551626253,0.30183416,39465.0,39455.0,0.0509]
[1646551626504,0.18163395,39460.0,39455.0,0.0509]
[1646551627102,0.30183416,39465.0,39455.0,0.0509]
[1646551628104,0.20059265,39456.0,39452.0,0.002]
[1646551628306,0.30183416,39455.0,39452.0,0.002]
[1646551628607,0.30183416,39455.0,39447.0,0.5]
[1646551628804,0.30183416,39455.0,39441.0,0.7979]
[1646551629205,0.30183416,39455.0,39446.0,0.17209474]
[1646551629603,0.30183416,39455.0,39446.0,0.17233264]
[1646551629804,0.30183416,39455.0,39446.0,0.0002379]
[1646551630244,0.15890318,39450.0,39446.0,0.0002379]
[1646551630645,0.15890318,39450.0,39440.0,0.29045286]
[1646551630846,0.30183416,39456.0,39446.0,0.0002379]
[1646551631048,0.36551713,39456.0,39446.0,0.0002379]
[1646551631648,0.19935319,39454.0,39446.0,0.0002379]
[1646551631850,0.18774812,39449.0,39441.0,0.18435501]
[1646551632049,0.30183416,39448.0,39441.0,0.18435501]
[1646551632249,0.30183416,39453.0,39441.0,0.18435501]
[1646551632653,0.28974406,39456.0,39441.0,0.18435501]
[1646551633251,0.28974406,39456.0,39447.0,0.00022118]
[1646551634292,0.17952757,39450.0,39441.0,0.34577413]
[1646551634494,0.16288309,39455.0,39441.0,0.34577413]
[1646551634495,0.29022195,39454.0,39441.0,0.34577413]
[1646551634693,0.16288309,39455.0,39441.0,0.64760829]
[1646551635193,0.29025376,39454.0,39441.0,0.17099217]
[1646551635392,0.16288309,39455.0,39441.0,0.17099217]
[1646551635595,0.29027033,39456.0,39446.0,0.00022118]
[1646551635792,0.117,39457.0,39446.0,0.00022118]
[1646551636596,0.117,39457.0,39444.0,0.30183416]
[1646551636894,0.16318777,39456.0,39450.0,0.00022247]
[1646551637394,0.45372478,39455.0,39450.0,0.00022247]
[1646551637847,0.16342019,39455.0,39442.0,0.30183416]
[1646551638044,0.45380762,39455.0,39451.0,0.00022247]
[1646551638245,0.16342019,39455.0,39451.0,0.00022247]
[1646551638948,0.29016317,39454.0,39438.0,0.1247]
[1646551639151,0.29016317,39454.0,39451.0,0.00022247]
[1646551639347,1.0,39454.0,39447.0,0.001]
[1646551639547,1.29022941,39454.0,39447.0,0.001]
[1646551639748,1.44022941,39454.0,39447.0,0.001]
[1646551639949,0.15574321,39449.0,39447.0,0.001]
[1646551640148,0.30183416,39448.0,39447.0,0.001]
[1646551640548,0.30183416,39452.0,39447.0,0.001]
[1646551640749,0.30183416,39452.0,39439.0,0.20248655]
[1646551640949,0.1537936,39444.0,39439.0,0.20248655]
[1646551641793,0.1537936,39444.0,39434.0,0.18334546]
[1646551641991,0.30268526,39443.0,39434.0,0.06224546]
[1646551642191,0.1537936,39444.0,39434.0,0.06224546]
[1646551642592,0.30268526,39447.0,39433.0,2.07198604]
[1646551642794,0.30268526,39447.0,39439.0,0.20371734]
[1646551643394,0.30268526,39447.0,39433.0,2.07198604]
[1646551643695,0.30268526,39447.0,39435.0,0.06710649]
[1646551643995,0.30268526,39447.0,39438.0,0.00023816]
[1646551644398,0.30268526,39447.0,39439.0,0.16272901]
[1646551644997,0.19415145,39441.0,39439.0,0.16272901]
[1646551645641,0.30268526,39447.0,39439.0,0.16272901]
[1646551645842,0.1863374,39448.0,39438.0,0.003]
[1646551646441,0.1863374,39448.0,39441.0,0.00023815]
[1646551646943,0.21168434,39447.0,39441.0,0.00023815]
[1646551647339,0.21168434,39447.0,39435.0,0.19959436]
[1646551647340,0.21168434,39447.0,39436.0,0.001]
[1646551647541,0.17477255,39438.0,39436.0,0.001]
[1646551648546,0.17477255,39438.0,39427.0,0.05661128]
[1646551648743,0.17477255,39438.0,39435.0,0.00023817]
[1646551649802,0.17477255,39438.0,39429.0,0.30268526]
[1646551650005,0.17477255,39438.0,39428.0,0.21246327]
[1646551650006,0.17477255,39438.0,39435.0,0.00023817]
[1646551651103,0.17477255,39438.0,39428.0,0.21246327]
[1646551651306,0.28421736,39437.0,39435.0,0.00023817]
[1646551651506,0.33511736,39437.0,39435.0,0.00023817]
[1646551651705,0.30268526,39436.0,39435.0,0.00023817]
[1646551651905,0.0509,39437.0,39435.0,0.00023817]
[1646551652307,0.26845874,39437.0,39430.0,0.003]
[1646551652506,0.20291488,39436.0,39434.0,0.00022946]
[1646551653340,0.20291488,39436.0,39433.0,0.001]
[1646551653540,0.20291488,39436.0,39433.0,0.00122946]